{"text_format":"1","workbook":"xlsx","n_sheets":3,"sheets":["Base","Edit","Feuil3"],"not_rendered":{"charts":0,"images":0,"macros":0,"external_links":0,"defined_names":1,"comments":0,"pivot_tables":0},"unopened":[],"bounds":{"document_bytes":16777216,"sheet_cells":100000,"rows_first":2000,"rows_last":500,"rows_between":2000,"halvings":0,"cell_chars":16384,"cell_head_chars":4096},"cells_cut":0,"cells_raw":0,"read":"whole","date_system":"1900"}

{"sheet":"Base","index":0,"n_rows":101,"n_cols":101,"rows_kept":101,"cut":false,"hidden":false,"merged":[]}
[null,"client _01","client _02","client _03","client _04","client _05","client _06","client _07","client _08","client _09","client _10","client _11","client _12","client _13","client _14","client _15","client _16","client _17","client _18","client _19","client _20","client _21","client _22","client _23","client _24","client _25","client _26","client _27","client _28","client _29","client _30","client _31","client _32","client _33","client _34","client _35","client _36","client _37","client _38","client _39","client _40","client _41","client _42","client _43","client _44","client _45","client _46","client _47","client _48","client _49","client _50","client _51","client _52","client _53","client _54","client _55","client _56","client _57","client _58","client _59","client _60","client _61","client _62","client _63","client _64","client _65","client _66","client _67","client _68","client _69","client _70","client _71","client _72","client _73","client _74","client _75","client _76","client _77","client _78","client _79","client _80","client _81","client _82","client _83","client _84","client _85","client _86","client _87","client _88","client _89","client _90","client _91","client _92","client _93","client _94","client _95","client _96","client _97","client _98","client _99","client _100"]
["client _01",0,10,12,11,12,12.5,13,13.5,14,14.5,15,15.5,16,16.5,17,17.5,18,18.5,19,19.5,20,20.5,21,21.5,22,22.5,23,23.5,24,24.5,25,25.5,26,26.5,27,27.5,28,28.5,29,29.5,30,30.5,31,31.5,32,32.5,33,33.5,34,34.5,35,35.5,36,36.5,37,37.5,38,38.5,39,39.5,40,40.5,41,41.5,42,42.5,43,43.5,44,44.5,45,45.5,46,46.5,47,47.5,48,48.5,49,49.5,50,50.5,51,51.5,52,52.5,53,53.5,54,54.5,55,55.5,56,56.5,57,57.5,58,58.5,59,59.5]
["client _02",10,0,19,21,20,21,21.5,22,22.5,23,23.5,24,24.5,25,25.5,26,26.5,27,27.5,28,28.5,29,29.5,30,30.5,31,31.5,32,32.5,33,33.5,34,34.5,35,35.5,36,36.5,37,37.5,38,38.5,39,39.5,40,40.5,41,41.5,42,42.5,43,43.5,44,44.5,45,45.5,46,46.5,47,47.5,48,48.5,49,49.5,50,50.5,51,51.5,52,52.5,53,53.5,54,54.5,55,55.5,56,56.5,57,57.5,58,58.5,59,59.5,60,60.5,61,61.5,62,62.5,63,63.5,64,64.5,65,65.5,66,66.5,67,67.5,68]
["client _03",12,19,0,20,21,21.5,22,22.5,23,23.5,24,24.5,25,25.5,26,26.5,27,27.5,28,28.5,29,29.5,30,30.5,31,31.5,32,32.5,33,33.5,34,34.5,35,35.5,36,36.5,37,37.5,38,38.5,39,39.5,40,40.5,41,41.5,42,42.5,43,43.5,44,44.5,45,45.5,46,46.5,47,47.5,48,48.5,49,49.5,50,50.5,51,51.5,52,52.5,53,53.5,54,54.5,55,55.5,56,56.5,57,57.5,58,58.5,59,59.5,60,60.5,61,61.5,62,62.5,63,63.5,64,64.5,65,65.5,66,66.5,67,67.5,68,68.5]
["client _04",11,21,20,0,79,81,63,32,100,88,54,36,65,78,65,48,43,25,99,84,78,87,51,69,37,17,68,52,53,89,81,70,25,31,35,35,57,20,68,31,94,85,98,16,21,92,79,89,54,28,23,38,41,55,90,37,62,79,85,48,58,67,48,91,65,71,48,37,63,58,34,88,53,80,49,89,55,61,82,21,31,78,66,65,16,63,98,32,68,75,15,90,77,47,77,44,73,16,57,34]
["client _05",12,20,21,79,0,60,82,35,52,19,72,53,54,72,89,100,91,81,34,32,72,15,60,75,39,81,24,29,25,77,21,56,74,71,74,41,87,24,54,49,23,42,19,63,78,48,94,70,42,52,69,45,49,42,95,29,41,28,64,59,91,72,27,82,26,23,64,74,41,69,87,64,42,61,25,73,18,85,27,83,93,56,59,98,79,84,92,45,55,43,16,61,61,56,65,84,77,38,82,47]
["client _06",12.5,21,21.5,67,60,0,60,72,97,87,155,103,74,87,67,110,129,152,156,110,132,78,143,148,159,126,149,145,107,93,122,71,126,119,151,124,124,87,89,145,114,137,134,133,61,136,113,89,121,101,117,83,96,90,121,72,60,155,63,81,150,158,62,65,129,99,70,83,79,66,151,122,60,60,70,136,126,71,154,149,160,138,106,128,132,130,138,158,107,124,91,152,125,157,130,130,70,84,134,157]
["client _07",13,21.5,22,60,82,60,0,171,64,74,156,37,68,105,162,100,177,59,174,24,86,66,88,127,162,113,173,67,71,108,126,118,150,152,142,168,115,84,149,173,118,106,51,90,60,140,180,38,79,175,168,155,134,128,27,150,56,50,69,163,138,94,58,147,52,85,82,155,46,59,20,127,20,175,103,42,64,85,112,130,66,101,145,141,52,173,108,91,178,119,85,124,130,56,118,34,31,144,45,117]
["client _08",13.5,22,22.5,82,35,72,171,0,35,37,16,36,42,29,29,60,70,54,21,16,24,50,37,46,66,28,69,60,41,65,28,51,40,18,54,46,49,46,55,57,35,67,48,62,51,51,28,67,61,49,39,64,28,48,18,34,25,55,64,43,69,62,62,45,50,64,49,55,55,52,60,30,69,55,27,15,46,54,19,21,54,43,34,70,67,49,62,60,35,33,30,61,36,59,30,55,30,15,62,58]
["client _09",14,22.5,23,35,52,97,64,35,0,103,112,142,79,91,92,64,63,118,71,141,97,90,118,133,60,112,70,105,67,62,61,63,83,147,73,100,141,90,77,128,93,108,140,101,140,60,152,83,83,75,108,85,113,150,154,70,117,91,63,73,99,75,149,134,129,121,63,141,102,131,62,101,92,141,115,71,69,109,134,129,85,140,110,99,84,95,149,72,105,155,90,68,158,71,69,154,150,86,66,76]
["client _10",14.5,23,23.5,52,19,87,74,37,103,0,122,138,155,121,144,138,120,132,121,137,158,144,120,135,123,158,121,121,160,128,139,156,132,160,133,137,132,153,158,157,131,155,139,153,137,138,155,139,145,155,135,141,154,151,149,126,120,152,125,120,131,131,151,149,150,128,154,157,142,127,146,146,155,157,160,121,146,141,142,125,155,123,157,135,142,124,123,154,122,160,148,159,147,144,149,140,138,155,120,125]
["client _11",15,23.5,24,19,72,155,156,16,112,122,0,168,125,121,195,125,94,90,112,137,191,95,144,85,167,90,97,180,140,107,104,89,95,131,88,162,185,115,194,90,99,190,108,92,114,195,186,192,177,181,170,171,177,189,194,115,86,116,112,138,128,186,198,83,106,118,137,160,140,122,156,139,107,143,195,189,112,130,92,115,161,184,105,97,176,91,102,125,99,185,186,161,84,178,167,148,168,104,111,96]
["client _12",15.5,24,24.5,72,53,103,37,36,142,138,168,0,90,80,74,81,83,77,72,81,81,73,82,78,76,78,76,85,73,89,75,71,79,87,65,87,88,84,83,68,77,75,67,77,87,78,80,73,82,73,87,75,81,68,70,70,83,89,76,90,87,68,84,86,73,81,80,82,84,88,74,72,83,66,68,78,90,81,82,72,74,80,89,75,85,74,73,82,72,80,65,77,72,78,84,82,68,71,71,75]
["client _13",16,24.5,25,53,54,74,68,42,79,155,125,90,0]
["client _14",16.5,25,25.5,54,72,87,105,29,91,121,121,80,null,0]
["client _15",17,25.5,26,72,89,67,162,29,92,144,195,74,null,null,0]
["client _16",17.5,26,26.5,89,100,110,100,60,64,138,125,81,null,null,null,0]
["client _17",18,26.5,27,100,91,129,177,70,63,120,94,83,null,null,null,null,0]
["client _18",18.5,27,27.5,91,81,152,59,54,118,132,90,77,null,null,null,null,null,0]
["client _19",19,27.5,28,81,34,156,174,21,71,121,112,72,null,null,null,null,null,null,0]
["client _20",19.5,28,28.5,34,32,110,24,16,141,137,137,81,null,null,null,null,null,null,null,0]
["client _21",20,28.5,29,32,72,132,86,24,97,158,191,81,null,null,null,null,null,null,null,null,0]
["client _22",20.5,29,29.5,72,15,78,66,50,90,144,95,73,null,null,null,null,null,null,null,null,null,0]
["client _23",21,29.5,30,15,60,143,88,37,118,120,144,82,null,null,null,null,null,null,null,null,null,null,0]
["client _24",21.5,30,30.5,60,75,148,127,46,133,135,85,78,null,"Pour remplir \"facilement \" ce tableau",null,null,null,null,null,null,null,null,null,0]
["client _25",22,30.5,31,75,39,159,162,66,60,123,167,76,null,null,null,null,null,null,null,null,null,null,null,null,0]
["client _26",22.5,31,31.5,39,81,126,113,28,112,158,90,78,null,"placer les distances voulues dans les colonnes à partir de la cellule bleue 0, ver(s le bas",null,null,null,null,null,null,null,null,null,null,null,0]
["client _27",23,31.5,32,81,24,149,173,69,70,121,97,76,null,"(distances centre le client sur la lmigne et celui sur la colonne",null,null,null,null,null,null,null,null,null,null,null,null,0]
["client _28",23.5,32,32.5,24,29,145,67,60,105,121,180,85,null,null,null,null,null,null,null,null,null,null,null,null,null,null,null,0]
["client _29",24,32.5,33,29,25,107,71,41,67,160,140,73,null,"pour remplir l'autre partie du tableau au dessus des 0:",null,null,null,null,null,null,null,null,null,null,null,null,null,null,0]
["client _30",24.5,33,33.5,25,77,93,108,65,62,128,107,89,null,"copier la partie de colonne en dessous du 0",null,null,null,null,null,null,null,null,null,null,null,null,null,null,null,0]
["client _31",25,33.5,34,77,21,122,126,28,61,139,104,75,null,"sélectionner la cellule à droite de la même cellule bleue",null,null,null,null,null,null,null,null,null,null,null,null,null,null,null,null,0]
["client _32",25.5,34,34.5,21,56,71,118,51,63,156,89,71,null,"clic droit collage spécial \"transposé\"",null,null,null,null,null,null,null,null,null,null,null,null,null,null,null,null,null,0]
["client _33",26,34.5,35,56,74,126,150,40,83,132,95,79,null,null,null,null,null,null,null,null,null,null,null,null,null,null,null,null,null,null,null,null,0]
["client _34",26.5,35,35.5,74,71,119,152,18,147,160,131,87,null,"soit selon schéma ci-dessous:ci-dessous",null,null,null,null,null,null,null,null,null,null,null,null,null,null,null,null,null,null,null,0]
["client _35",27,35.5,36,71,74,151,142,54,73,133,88,65,null,0,null,"copier la partie verte sur la hauteur affectée",null,null,null,null,null,null,null,null,null,null,null,null,null,null,null,null,null,null,0]
["client _36",27.5,36,36.5,74,41,124,168,46,100,137,162,87,null,null,null,"sélectionner la cellule rouge",null,null,null,null,null,null,null,null,null,null,null,null,null,null,null,null,null,null,null,0]
["client _37",28,36.5,37,41,87,124,115,49,141,132,185,88,null,null,null,"et collage spécial transposé",null,null,null,null,null,null,null,null,null,null,null,null,null,null,null,null,null,null,null,null,0]
["client _38",28.5,37,37.5,87,24,87,84,46,90,153,115,84,null,null,null,"et ceci pour chaque cellule 0",null,null,null,null,null,null,null,null,null,null,null,null,null,null,null,null,null,null,null,null,null,0]
["client _39",29,37.5,38,24,54,89,149,55,77,158,194,83,null,null,null,null,null,null,null,null,null,null,null,null,null,null,null,null,null,null,null,null,null,null,null,null,null,null,0]
["client _40",29.5,38,38.5,54,49,145,173,57,128,157,90,68,null,null,null,null,null,null,null,null,null,null,null,null,null,null,null,null,null,null,null,null,null,null,null,null,null,null,null,0]
["client _41",30,38.5,39,49,23,114,118,35,93,131,99,77,null,null,null,null,null,null,null,null,null,null,null,null,null,null,null,null,null,null,null,null,null,null,null,null,null,null,null,null,0]
["client _42",30.5,39,39.5,23,42,137,106,67,108,155,190,75,null,null,null,null,null,null,null,null,null,null,null,null,null,null,null,null,null,null,null,null,null,null,null,null,null,null,null,null,null,0]
["client _43",31,39.5,40,42,19,134,51,48,140,139,108,67,null,null,null,null,null,null,null,null,null,null,null,null,null,null,null,null,null,null,null,null,null,null,null,null,null,null,null,null,null,null,0]
["client _44",31.5,40,40.5,19,63,133,90,62,101,153,92,77,null,null,null,null,null,null,null,null,null,null,null,null,null,null,null,null,null,null,null,null,null,null,null,null,null,null,null,null,null,null,null,0]
["client _45",32,40.5,41,63,78,61,60,51,140,137,114,87,null,null,null,null,null,null,null,null,null,null,null,null,null,null,null,null,null,null,null,null,null,null,null,null,null,null,null,null,null,null,null,null,0]
["client _46",32.5,41,41.5,78,48,136,140,51,60,138,195,78,null,null,null,null,null,null,null,null,null,null,null,null,null,null,null,null,null,null,null,null,null,null,null,null,null,null,null,null,null,null,null,null,null,0]
["client _47",33,41.5,42,48,94,113,180,28,152,155,186,80,null,null,null,null,null,null,null,null,null,null,null,null,null,null,null,null,null,null,null,null,null,null,null,null,null,null,null,null,null,null,null,null,null,null,0]
["client _48",33.5,42,42.5,94,70,89,38,67,83,139,192,73,null,null,null,null,null,null,null,null,null,null,null,null,null,null,null,null,null,null,null,null,null,null,null,null,null,null,null,null,null,null,null,null,null,null,null,0]
["client _49",34,42.5,43,70,42,121,79,61,83,145,177,82,null,null,null,null,null,null,null,null,null,null,null,null,null,null,null,null,null,null,null,null,null,null,null,null,null,null,null,null,null,null,null,null,null,null,null,null,0]
["client _50",34.5,43,43.5,42,52,101,175,49,75,155,181,73,null,null,null,null,null,null,null,null,null,null,null,null,null,null,null,null,null,null,null,null,null,null,null,null,null,null,null,null,null,null,null,null,null,null,null,null,null,0]
["client _51",35,43.5,44,52,69,117,168,39,108,135,170,87,null,null,null,null,null,null,null,null,null,null,null,null,null,null,null,null,null,null,null,null,null,null,null,null,null,null,null,null,null,null,null,null,null,null,null,null,null,null,0]
["client _52",35.5,44,44.5,69,45,83,155,64,85,141,171,75,null,null,null,null,null,null,null,null,null,null,null,null,null,null,null,null,null,null,null,null,null,null,null,null,null,null,null,null,null,null,null,null,null,null,null,null,null,null,0,0]
["client _53",36,44.5,45,45,49,96,134,28,113,154,177,81,null,null,null,null,null,null,null,null,null,null,null,null,null,null,null,null,null,null,null,null,null,null,null,null,null,null,null,null,null,null,null,null,null,null,null,null,null,null,null,null,0]
["client _54",36.5,45,45.5,49,42,90,128,48,150,151,189,68,null,null,null,null,null,null,null,null,null,null,null,null,null,null,null,null,null,null,null,null,null,null,null,null,null,null,null,null,null,null,null,null,null,null,null,null,null,null,null,null,null,0]
["client _55",37,45.5,46,42,95,121,27,18,154,149,194,70,null,null,null,null,null,null,null,null,null,null,null,null,null,null,null,null,null,null,null,null,null,null,null,null,null,null,null,null,null,null,null,null,null,null,null,null,null,null,null,null,null,null,0]
["client _56",37.5,46,46.5,95,29,72,150,34,70,126,115,70,null,null,null,null,null,null,null,null,null,null,null,null,null,null,null,null,null,null,null,null,null,null,null,null,null,null,null,null,null,null,null,null,null,null,null,null,null,null,null,null,null,null,null,0]
["client _57",38,46.5,47,29,41,60,56,25,117,120,86,83,null,null,null,null,null,null,null,null,null,null,null,null,null,null,null,null,null,null,null,null,null,null,null,null,null,null,null,null,null,null,null,null,null,null,null,null,null,null,null,null,null,null,null,null,0]
["client _58",38.5,47,47.5,41,28,155,50,55,91,152,116,89,null,null,null,null,null,null,null,null,null,null,null,null,null,null,null,null,null,null,null,null,null,null,null,null,null,null,null,null,null,null,null,null,null,null,null,null,null,null,null,null,null,null,null,null,null,0]
["client _59",39,47.5,48,28,64,63,69,64,63,125,112,76,null,null,null,null,null,null,null,null,null,null,null,null,null,null,null,null,null,null,null,null,null,null,null,null,null,null,null,null,null,null,null,null,null,null,null,null,null,null,null,null,null,null,null,null,null,null,0]
["client _60",39.5,48,48.5,64,59,81,163,43,73,120,138,90,null,null,null,null,null,null,null,null,null,null,null,null,null,null,null,null,null,null,null,null,null,null,null,null,null,null,null,null,null,null,null,null,null,null,null,null,null,null,null,null,null,null,null,null,null,null,null,0]
["client _61",40,48.5,49,59,91,150,138,69,99,131,128,87,null,null,null,null,null,null,null,null,null,null,null,null,null,null,null,null,null,null,null,null,null,null,null,null,null,null,null,null,null,null,null,null,null,null,null,null,null,null,null,null,null,null,null,null,null,null,null,null,0]
["client _62",40.5,49,49.5,91,72,158,94,62,75,131,186,68,null,null,null,null,null,null,null,null,null,null,null,null,null,null,null,null,null,null,null,null,null,null,null,null,null,null,null,null,null,null,null,null,null,null,null,null,null,null,null,null,null,null,null,null,null,null,null,null,null,0]
["client _63",41,49.5,50,72,27,62,58,62,149,151,198,84,null,null,null,null,null,null,null,null,null,null,null,null,null,null,null,null,null,null,null,null,null,null,null,null,null,null,null,null,null,null,null,null,null,null,null,null,null,null,null,null,null,null,null,null,null,null,null,null,null,null,0]
["client _64",41.5,50,50.5,27,82,65,147,45,134,149,83,86,null,null,null,null,null,null,null,null,null,null,null,null,null,null,null,null,null,null,null,null,null,null,null,null,null,null,null,null,null,null,null,null,null,null,null,null,null,null,null,null,null,null,null,null,null,null,null,null,null,null,null,0]
["client _65",42,50.5,51,82,26,129,52,50,129,150,106,73,null,null,null,null,null,null,null,null,null,null,null,null,null,null,null,null,null,null,null,null,null,null,null,null,null,null,null,null,null,null,null,null,null,null,null,null,null,null,null,null,null,null,null,null,null,null,null,null,null,null,null,null,0]
["client _66",42.5,51,51.5,26,23,99,85,64,121,128,118,81,null,null,null,null,null,null,null,null,null,null,null,null,null,null,null,null,null,null,null,null,null,null,null,null,null,null,null,null,null,null,null,null,null,null,null,null,null,null,null,null,null,null,null,null,null,null,null,null,null,null,null,null,null,0]
["client _67",43,51.5,52,23,64,70,82,49,63,154,137,80,null,null,null,null,null,null,null,null,null,null,null,null,null,null,null,null,null,null,null,null,null,null,null,null,null,null,null,null,null,null,null,null,null,null,null,null,null,null,null,null,null,null,null,null,null,null,null,null,null,null,null,null,null,null,0]
["client _68",43.5,52,52.5,64,74,83,155,55,141,157,160,82,null,null,null,null,null,null,null,null,null,null,null,null,null,null,null,null,null,null,null,null,null,null,null,null,null,null,null,null,null,null,null,null,null,null,null,null,null,null,null,null,null,null,null,null,null,null,null,null,null,null,null,null,null,null,null,0]
["client _69",44,52.5,53,74,41,79,46,55,102,142,140,84,null,null,null,null,null,null,null,null,null,null,null,null,null,null,null,null,null,null,null,null,null,null,null,null,null,null,null,null,null,null,null,null,null,null,null,null,null,null,null,null,null,null,null,null,null,null,null,null,null,null,null,null,null,null,null,null,0]
["client _70",44.5,53,53.5,41,69,66,59,52,131,127,122,88,null,null,null,null,null,null,null,null,null,null,null,null,null,null,null,null,null,null,null,null,null,null,null,null,null,null,null,null,null,null,null,null,null,null,null,null,null,null,null,null,null,null,null,null,null,null,null,null,null,null,null,null,null,null,null,null,null,0]
["client _71",45,53.5,54,69,87,151,20,60,62,146,156,74,null,null,null,null,null,null,null,null,null,null,null,null,null,null,null,null,null,null,null,null,null,null,null,null,null,null,null,null,null,null,null,null,null,null,null,null,null,null,null,null,null,null,null,null,null,null,null,null,null,null,null,null,null,null,null,null,null,null,0]
["client _72",45.5,54,54.5,87,64,122,127,30,101,146,139,72,null,null,null,null,null,null,null,null,null,null,null,null,null,null,null,null,null,null,null,null,null,null,null,null,null,null,null,null,null,null,null,null,null,null,null,null,null,null,null,null,null,null,null,null,null,null,null,null,null,null,null,null,null,null,null,null,null,null,null,0]
["client _73",46,54.5,55,64,42,60,20,69,92,155,107,83,null,null,null,null,null,null,null,null,null,null,null,null,null,null,null,null,null,null,null,null,null,null,null,null,null,null,null,null,null,null,null,null,null,null,null,null,null,null,null,null,null,null,null,null,null,null,null,null,null,null,null,null,null,null,null,null,null,null,null,null,0]
["client _74",46.5,55,55.5,42,61,60,175,55,141,157,143,66,null,null,null,null,null,null,null,null,null,null,null,null,null,null,null,null,null,null,null,null,null,null,null,null,null,null,null,null,null,null,null,null,null,null,null,null,null,null,null,null,null,null,null,null,null,null,null,null,null,null,null,null,null,null,null,null,null,null,null,null,null,0]
["client _75",47,55.5,56,61,25,70,103,27,115,160,195,68,null,null,null,null,null,null,null,null,null,null,null,null,null,null,null,null,null,null,null,null,null,null,null,null,null,null,null,null,null,null,null,null,null,null,null,null,null,null,null,null,null,null,null,null,null,null,null,null,null,null,null,null,null,null,null,null,null,null,null,null,null,null,0]
["client _76",47.5,56,56.5,25,73,136,42,15,71,121,189,78,null,null,null,null,null,null,null,null,null,null,null,null,null,null,null,null,null,null,null,null,null,null,null,null,null,null,null,null,null,null,null,null,null,null,null,null,null,null,null,null,null,null,null,null,null,null,null,null,null,null,null,null,null,null,null,null,null,null,null,null,null,null,null,0]
["client _77",48,56.5,57,73,18,126,64,46,69,146,112,90,null,null,null,null,null,null,null,null,null,null,null,null,null,null,null,null,null,null,null,null,null,null,null,null,null,null,null,null,null,null,null,null,null,null,null,null,null,null,null,null,null,null,null,null,null,null,null,null,null,null,null,null,null,null,null,null,null,null,null,null,null,null,null,null,0]
["client _78",48.5,57,57.5,18,85,71,85,54,109,141,130,81,null,null,null,null,null,null,null,null,null,null,null,null,null,null,null,null,null,null,null,null,null,null,null,null,null,null,null,null,null,null,null,null,null,null,null,null,null,null,null,null,null,null,null,null,null,null,null,null,null,null,null,null,null,null,null,null,null,null,null,null,null,null,null,null,null,0]
["client _79",49,57.5,58,85,27,154,112,19,134,142,92,82,null,null,null,null,null,null,null,null,null,null,null,null,null,null,null,null,null,null,null,null,null,null,null,null,null,null,null,null,null,null,null,null,null,null,null,null,null,null,null,null,null,null,null,null,null,null,null,null,null,null,null,null,null,null,null,null,null,null,null,null,null,null,null,null,null,null,0]
["client _80",49.5,58,58.5,27,83,149,130,21,129,125,115,72,null,null,null,null,null,null,null,null,null,null,null,null,null,null,null,null,null,null,null,null,null,null,null,null,null,null,null,null,null,null,null,null,null,null,null,null,null,null,null,null,null,null,null,null,null,null,null,null,null,null,null,null,null,null,null,null,null,null,null,null,null,null,null,null,null,null,null,0]
["client _81",50,58.5,59,83,93,160,66,54,85,155,161,74,null,null,null,null,null,null,null,null,null,null,null,null,null,null,null,null,null,null,null,null,null,null,null,null,null,null,null,null,null,null,null,null,null,null,null,null,null,null,null,null,null,null,null,null,null,null,null,null,null,null,null,null,null,null,null,null,null,null,null,null,null,null,null,null,null,null,null,null,0]
["client _82",50.5,59,59.5,93,56,138,101,43,140,123,184,80,null,null,null,null,null,null,null,null,null,null,null,null,null,null,null,null,null,null,null,null,null,null,null,null,null,null,null,null,null,null,null,null,null,null,null,null,null,null,null,null,null,null,null,null,null,null,null,null,null,null,null,null,null,null,null,null,null,null,null,null,null,null,null,null,null,null,null,null,null,0]
["client _83",51,59.5,60,56,59,106,145,34,110,157,105,89,null,null,null,null,null,null,null,null,null,null,null,null,null,null,null,null,null,null,null,null,null,null,null,null,null,null,null,null,null,null,null,null,null,null,null,null,null,null,null,null,null,null,null,null,null,null,null,null,null,null,null,null,null,null,null,null,null,null,null,null,null,null,null,null,null,null,null,null,null,null,0]
["client _84",51.5,60,60.5,59,98,128,141,70,99,135,97,75,null,null,null,null,null,null,null,null,null,null,null,null,null,null,null,null,null,null,null,null,null,null,null,null,null,null,null,null,null,null,null,null,null,null,null,null,null,null,null,null,null,null,null,null,null,null,null,null,null,null,null,null,null,null,null,null,null,null,null,null,null,null,null,null,null,null,null,null,null,null,null,0]
["client _85",52,60.5,61,98,79,132,52,67,84,142,176,85,null,null,null,null,null,null,null,null,null,null,null,null,null,null,null,null,null,null,null,null,null,null,null,null,null,null,null,null,null,null,null,null,null,null,null,null,null,null,null,null,null,null,null,null,null,null,null,null,null,null,null,null,null,null,null,null,null,null,null,null,null,null,null,null,null,null,null,null,null,null,null,null,0]
["client _86",52.5,61,61.5,79,84,130,173,49,95,124,91,74,null,null,null,null,null,null,null,null,null,null,null,null,null,null,null,null,null,null,null,null,null,null,null,null,null,null,null,null,null,null,null,null,null,null,null,null,null,null,null,null,null,null,null,null,null,null,null,null,null,null,null,null,null,null,null,null,null,null,null,null,null,null,null,null,null,null,null,null,null,null,null,null,null,0]
["client _87",53,61.5,62,84,92,138,108,62,149,123,102,73,null,null,null,null,null,null,null,null,null,null,null,null,null,null,null,null,null,null,null,null,null,null,null,null,null,null,null,null,null,null,null,null,null,null,null,null,null,null,null,null,null,null,null,null,null,null,null,null,null,null,null,null,null,null,null,null,null,null,null,null,null,null,null,null,null,null,null,null,null,null,null,null,null,null,0]
["client _88",53.5,62,62.5,92,45,158,91,60,72,154,125,82,null,null,null,null,null,null,null,null,null,null,null,null,null,null,null,null,null,null,null,null,null,null,null,null,null,null,null,null,null,null,null,null,null,null,null,null,null,null,null,null,null,null,null,null,null,null,null,null,null,null,null,null,null,null,null,null,null,null,null,null,null,null,null,null,null,null,null,null,null,null,null,null,null,null,null,0]
["client _89",54,62.5,63,45,55,107,178,35,105,122,99,72,null,null,null,null,null,null,null,null,null,null,null,null,null,null,null,null,null,null,null,null,null,null,null,null,null,null,null,null,null,null,null,null,null,null,null,null,null,null,null,null,null,null,null,null,null,null,null,null,null,null,null,null,null,null,null,null,null,null,null,null,null,null,null,null,null,null,null,null,null,null,null,null,null,null,null,null,0]
["client _90",54.5,63,63.5,55,43,124,119,33,155,160,185,80,null,null,null,null,null,null,null,null,null,null,null,null,null,null,null,null,null,null,null,null,null,null,null,null,null,null,null,null,null,null,null,null,null,null,null,null,null,null,null,null,null,null,null,null,null,null,null,null,null,null,null,null,null,null,null,null,null,null,null,null,null,null,null,null,null,null,null,null,null,null,null,null,null,null,null,null,null,0]
["client _91",55,63.5,64,43,16,91,85,30,90,148,186,65,null,null,null,null,null,null,null,null,null,null,null,null,null,null,null,null,null,null,null,null,null,null,null,null,null,null,null,null,null,null,null,null,null,null,null,null,null,null,null,null,null,null,null,null,null,null,null,null,null,null,null,null,null,null,null,null,null,null,null,null,null,null,null,null,null,null,null,null,null,null,null,null,null,null,null,null,null,null,0]
["client _92",55.5,64,64.5,16,61,152,124,61,68,159,161,77,null,null,null,null,null,null,null,null,null,null,null,null,null,null,null,null,null,null,null,null,null,null,null,null,null,null,null,null,null,null,null,null,null,null,null,null,null,null,null,null,null,null,null,null,null,null,null,null,null,null,null,null,null,null,null,null,null,null,null,null,null,null,null,null,null,null,null,null,null,null,null,null,null,null,null,null,null,null,null,0]
["client _93",56,64.5,65,61,61,125,130,36,158,147,84,72,null,null,null,null,null,null,null,null,null,null,null,null,null,null,null,null,null,null,null,null,null,null,null,null,null,null,null,null,null,null,null,null,null,null,null,null,null,null,null,null,null,null,null,null,null,null,null,null,null,null,null,null,null,null,null,null,null,null,null,null,null,null,null,null,null,null,null,null,null,null,null,null,null,null,null,null,null,null,null,null,0]
["client _94",56.5,65,65.5,61,56,157,56,59,71,144,178,78,null,null,null,null,null,null,null,null,null,null,null,null,null,null,null,null,null,null,null,null,null,null,null,null,null,null,null,null,null,null,null,null,null,null,null,null,null,null,null,null,null,null,null,null,null,null,null,null,null,null,null,null,null,null,null,null,null,null,null,null,null,null,null,null,null,null,null,null,null,null,null,null,null,null,null,null,null,null,null,null,null,0]
["client _95",57,65.5,66,56,65,130,118,30,69,149,167,84,null,null,null,null,null,null,null,null,null,null,null,null,null,null,null,null,null,null,null,null,null,null,null,null,null,null,null,null,null,null,null,null,null,null,null,null,null,null,null,null,null,null,null,null,null,null,null,null,null,null,null,null,null,null,null,null,null,null,null,null,null,null,null,null,null,null,null,null,null,null,null,null,null,null,null,null,null,null,null,null,null,null,0]
["client _96",57.5,66,66.5,65,84,130,34,55,154,140,148,82,null,null,null,null,null,null,null,null,null,null,null,null,null,null,null,null,null,null,null,null,null,null,null,null,null,null,null,null,null,null,null,null,null,null,null,null,null,null,null,null,null,null,null,null,null,null,null,null,null,null,null,null,null,null,null,null,null,null,null,null,null,null,null,null,null,null,null,null,null,null,null,null,null,null,null,null,null,null,null,null,null,null,null,0]
["client _97",58,66.5,67,84,77,70,31,30,150,138,168,68,null,null,null,null,null,null,null,null,null,null,null,null,null,null,null,null,null,null,null,null,null,null,null,null,null,null,null,null,null,null,null,null,null,null,null,null,null,null,null,null,null,null,null,null,null,null,null,null,null,null,null,null,null,null,null,null,null,null,null,null,null,null,null,null,null,null,null,null,null,null,null,null,null,null,null,null,null,null,null,null,null,null,null,null,0]
["client _98",58.5,67,67.5,77,38,84,144,15,86,155,104,71,null,null,null,null,null,null,null,null,null,null,null,null,null,null,null,null,null,null,null,null,null,null,null,null,null,null,null,null,null,null,null,null,null,null,null,null,null,null,null,null,null,null,null,null,null,null,null,null,null,null,null,null,null,null,null,null,null,null,null,null,null,null,null,null,null,null,null,null,null,null,null,null,null,null,null,null,null,null,null,null,null,null,null,null,null,0]
["client _99",59,67.5,68,38,82,134,45,62,66,120,111,71,null,null,null,null,null,null,null,null,null,null,null,null,null,null,null,null,null,null,null,null,null,null,null,null,null,null,null,null,null,null,null,null,null,null,null,null,null,null,null,null,null,null,null,null,null,null,null,null,null,null,null,null,null,null,null,null,null,null,null,null,null,null,null,null,null,null,null,null,null,null,null,null,null,null,null,null,null,null,null,null,null,null,null,null,null,null,0]
["client _100",59.5,68,68.5,82,47,157,117,58,76,125,96,75,null,null,null,null,null,null,null,null,null,null,null,null,null,null,null,null,null,null,null,null,null,null,null,null,null,null,null,null,null,null,null,null,null,null,null,null,null,null,null,null,null,null,null,null,null,null,null,null,null,null,null,null,null,null,null,null,null,null,null,null,null,null,null,null,null,null,null,null,null,null,null,null,null,null,null,null,null,null,null,null,null,null,null,null,null,null,null,0]

{"sheet":"Edit","index":1,"n_rows":140,"n_cols":6,"rows_kept":140,"cut":false,"hidden":false,"merged":[]}
["Date:"]
["total Km parcourus",null,{"$f":"SUM(C4:C140)","v":181}]
["client départ","client arrivée","kilométres","date",null,"les colonnes A et B sont équipées avec une liste déroulante"]
["client _02","client _04",{"$f":"IFERROR(INDEX(Base!$A$1:$CW$101,MATCH($A4,Base!$A$1:$A$101,0),MATCH($B4,Base!$A$1:$CW$1,0)),\"\")","v":21},"2016-04-22",null,"la colonne A de la feyuille Base et nommée Client"]
["client _04","client _03",{"$f":"IFERROR(INDEX(Base!$A$1:$CW$101,MATCH($A5,Base!$A$1:$A$101,0),MATCH($B5,Base!$A$1:$CW$1,0)),\"\")","v":20},"2016-04-22"]
["client _07","client _46",{"$f":"IFERROR(INDEX(Base!$A$1:$CW$101,MATCH($A6,Base!$A$1:$A$101,0),MATCH($B6,Base!$A$1:$CW$1,0)),\"\")","v":140},"2016-04-22"]
[null,null,{"$f":"IFERROR(INDEX(Base!$A$1:$CW$101,MATCH($A7,Base!$A$1:$A$101,0),MATCH($B7,Base!$A$1:$CW$1,0)),\"\")","v":""}]
[null,null,{"$f":"IFERROR(INDEX(Base!$A$1:$CW$101,MATCH($A8,Base!$A$1:$A$101,0),MATCH($B8,Base!$A$1:$CW$1,0)),\"\")","v":""}]
[null,null,{"$f":"IFERROR(INDEX(Base!$A$1:$CW$101,MATCH($A9,Base!$A$1:$A$101,0),MATCH($B9,Base!$A$1:$CW$1,0)),\"\")","v":""}]
[null,null,{"$f":"IFERROR(INDEX(Base!$A$1:$CW$101,MATCH($A10,Base!$A$1:$A$101,0),MATCH($B10,Base!$A$1:$CW$1,0)),\"\")","v":""}]
[null,null,{"$f":"IFERROR(INDEX(Base!$A$1:$CW$101,MATCH($A11,Base!$A$1:$A$101,0),MATCH($B11,Base!$A$1:$CW$1,0)),\"\")","v":""}]
[null,null,{"$f":"IFERROR(INDEX(Base!$A$1:$CW$101,MATCH($A12,Base!$A$1:$A$101,0),MATCH($B12,Base!$A$1:$CW$1,0)),\"\")","v":""}]
[null,null,{"$f":"IFERROR(INDEX(Base!$A$1:$CW$101,MATCH($A13,Base!$A$1:$A$101,0),MATCH($B13,Base!$A$1:$CW$1,0)),\"\")","v":""}]
[null,null,{"$f":"IFERROR(INDEX(Base!$A$1:$CW$101,MATCH($A14,Base!$A$1:$A$101,0),MATCH($B14,Base!$A$1:$CW$1,0)),\"\")","v":""}]
[null,null,{"$f":"IFERROR(INDEX(Base!$A$1:$CW$101,MATCH($A15,Base!$A$1:$A$101,0),MATCH($B15,Base!$A$1:$CW$1,0)),\"\")","v":""}]
[null,null,{"$f":"IFERROR(INDEX(Base!$A$1:$CW$101,MATCH($A16,Base!$A$1:$A$101,0),MATCH($B16,Base!$A$1:$CW$1,0)),\"\")","v":""}]
[null,null,{"$f":"IFERROR(INDEX(Base!$A$1:$CW$101,MATCH($A17,Base!$A$1:$A$101,0),MATCH($B17,Base!$A$1:$CW$1,0)),\"\")","v":""}]
[null,null,{"$f":"IFERROR(INDEX(Base!$A$1:$CW$101,MATCH($A18,Base!$A$1:$A$101,0),MATCH($B18,Base!$A$1:$CW$1,0)),\"\")","v":""}]
[null,null,{"$f":"IFERROR(INDEX(Base!$A$1:$CW$101,MATCH($A19,Base!$A$1:$A$101,0),MATCH($B19,Base!$A$1:$CW$1,0)),\"\")","v":""}]
[null,null,{"$f":"IFERROR(INDEX(Base!$A$1:$CW$101,MATCH($A20,Base!$A$1:$A$101,0),MATCH($B20,Base!$A$1:$CW$1,0)),\"\")","v":""}]
[null,null,{"$f":"IFERROR(INDEX(Base!$A$1:$CW$101,MATCH($A21,Base!$A$1:$A$101,0),MATCH($B21,Base!$A$1:$CW$1,0)),\"\")","v":""}]
[null,null,{"$f":"IFERROR(INDEX(Base!$A$1:$CW$101,MATCH($A22,Base!$A$1:$A$101,0),MATCH($B22,Base!$A$1:$CW$1,0)),\"\")","v":""}]
[null,null,{"$f":"IFERROR(INDEX(Base!$A$1:$CW$101,MATCH($A23,Base!$A$1:$A$101,0),MATCH($B23,Base!$A$1:$CW$1,0)),\"\")","v":""}]
[null,null,{"$f":"IFERROR(INDEX(Base!$A$1:$CW$101,MATCH($A24,Base!$A$1:$A$101,0),MATCH($B24,Base!$A$1:$CW$1,0)),\"\")","v":""}]
[null,null,{"$f":"IFERROR(INDEX(Base!$A$1:$CW$101,MATCH($A25,Base!$A$1:$A$101,0),MATCH($B25,Base!$A$1:$CW$1,0)),\"\")","v":""}]
[null,null,{"$f":"IFERROR(INDEX(Base!$A$1:$CW$101,MATCH($A26,Base!$A$1:$A$101,0),MATCH($B26,Base!$A$1:$CW$1,0)),\"\")","v":""}]
[null,null,{"$f":"IFERROR(INDEX(Base!$A$1:$CW$101,MATCH($A27,Base!$A$1:$A$101,0),MATCH($B27,Base!$A$1:$CW$1,0)),\"\")","v":""}]
[null,null,{"$f":"IFERROR(INDEX(Base!$A$1:$CW$101,MATCH($A28,Base!$A$1:$A$101,0),MATCH($B28,Base!$A$1:$CW$1,0)),\"\")","v":""}]
[null,null,{"$f":"IFERROR(INDEX(Base!$A$1:$CW$101,MATCH($A29,Base!$A$1:$A$101,0),MATCH($B29,Base!$A$1:$CW$1,0)),\"\")","v":""}]
[null,null,{"$f":"IFERROR(INDEX(Base!$A$1:$CW$101,MATCH($A30,Base!$A$1:$A$101,0),MATCH($B30,Base!$A$1:$CW$1,0)),\"\")","v":""}]
[null,null,{"$f":"IFERROR(INDEX(Base!$A$1:$CW$101,MATCH($A31,Base!$A$1:$A$101,0),MATCH($B31,Base!$A$1:$CW$1,0)),\"\")","v":""}]
[null,null,{"$f":"IFERROR(INDEX(Base!$A$1:$CW$101,MATCH($A32,Base!$A$1:$A$101,0),MATCH($B32,Base!$A$1:$CW$1,0)),\"\")","v":""}]
[null,null,{"$f":"IFERROR(INDEX(Base!$A$1:$CW$101,MATCH($A33,Base!$A$1:$A$101,0),MATCH($B33,Base!$A$1:$CW$1,0)),\"\")","v":""}]
[null,null,{"$f":"IFERROR(INDEX(Base!$A$1:$CW$101,MATCH($A34,Base!$A$1:$A$101,0),MATCH($B34,Base!$A$1:$CW$1,0)),\"\")","v":""}]
[null,null,{"$f":"IFERROR(INDEX(Base!$A$1:$CW$101,MATCH($A35,Base!$A$1:$A$101,0),MATCH($B35,Base!$A$1:$CW$1,0)),\"\")","v":""}]
[null,null,{"$f":"IFERROR(INDEX(Base!$A$1:$CW$101,MATCH($A36,Base!$A$1:$A$101,0),MATCH($B36,Base!$A$1:$CW$1,0)),\"\")","v":""}]
[null,null,{"$f":"IFERROR(INDEX(Base!$A$1:$CW$101,MATCH($A37,Base!$A$1:$A$101,0),MATCH($B37,Base!$A$1:$CW$1,0)),\"\")","v":""}]
[null,null,{"$f":"IFERROR(INDEX(Base!$A$1:$CW$101,MATCH($A38,Base!$A$1:$A$101,0),MATCH($B38,Base!$A$1:$CW$1,0)),\"\")","v":""}]
[null,null,{"$f":"IFERROR(INDEX(Base!$A$1:$CW$101,MATCH($A39,Base!$A$1:$A$101,0),MATCH($B39,Base!$A$1:$CW$1,0)),\"\")","v":""}]
[null,null,{"$f":"IFERROR(INDEX(Base!$A$1:$CW$101,MATCH($A40,Base!$A$1:$A$101,0),MATCH($B40,Base!$A$1:$CW$1,0)),\"\")","v":""}]
[null,null,{"$f":"IFERROR(INDEX(Base!$A$1:$CW$101,MATCH($A41,Base!$A$1:$A$101,0),MATCH($B41,Base!$A$1:$CW$1,0)),\"\")","v":""}]
[null,null,{"$f":"IFERROR(INDEX(Base!$A$1:$CW$101,MATCH($A42,Base!$A$1:$A$101,0),MATCH($B42,Base!$A$1:$CW$1,0)),\"\")","v":""}]
[null,null,{"$f":"IFERROR(INDEX(Base!$A$1:$CW$101,MATCH($A43,Base!$A$1:$A$101,0),MATCH($B43,Base!$A$1:$CW$1,0)),\"\")","v":""}]
[null,null,{"$f":"IFERROR(INDEX(Base!$A$1:$CW$101,MATCH($A44,Base!$A$1:$A$101,0),MATCH($B44,Base!$A$1:$CW$1,0)),\"\")","v":""}]
[null,null,{"$f":"IFERROR(INDEX(Base!$A$1:$CW$101,MATCH($A45,Base!$A$1:$A$101,0),MATCH($B45,Base!$A$1:$CW$1,0)),\"\")","v":""}]
[null,null,{"$f":"IFERROR(INDEX(Base!$A$1:$CW$101,MATCH($A46,Base!$A$1:$A$101,0),MATCH($B46,Base!$A$1:$CW$1,0)),\"\")","v":""}]
[null,null,{"$f":"IFERROR(INDEX(Base!$A$1:$CW$101,MATCH($A47,Base!$A$1:$A$101,0),MATCH($B47,Base!$A$1:$CW$1,0)),\"\")","v":""}]
[null,null,{"$f":"IFERROR(INDEX(Base!$A$1:$CW$101,MATCH($A48,Base!$A$1:$A$101,0),MATCH($B48,Base!$A$1:$CW$1,0)),\"\")","v":""}]
[null,null,{"$f":"IFERROR(INDEX(Base!$A$1:$CW$101,MATCH($A49,Base!$A$1:$A$101,0),MATCH($B49,Base!$A$1:$CW$1,0)),\"\")","v":""}]
[null,null,{"$f":"IFERROR(INDEX(Base!$A$1:$CW$101,MATCH($A50,Base!$A$1:$A$101,0),MATCH($B50,Base!$A$1:$CW$1,0)),\"\")","v":""}]
[null,null,{"$f":"IFERROR(INDEX(Base!$A$1:$CW$101,MATCH($A51,Base!$A$1:$A$101,0),MATCH($B51,Base!$A$1:$CW$1,0)),\"\")","v":""}]
[null,null,{"$f":"IFERROR(INDEX(Base!$A$1:$CW$101,MATCH($A52,Base!$A$1:$A$101,0),MATCH($B52,Base!$A$1:$CW$1,0)),\"\")","v":""}]
[null,null,{"$f":"IFERROR(INDEX(Base!$A$1:$CW$101,MATCH($A53,Base!$A$1:$A$101,0),MATCH($B53,Base!$A$1:$CW$1,0)),\"\")","v":""}]
[null,null,{"$f":"IFERROR(INDEX(Base!$A$1:$CW$101,MATCH($A54,Base!$A$1:$A$101,0),MATCH($B54,Base!$A$1:$CW$1,0)),\"\")","v":""}]
[null,null,{"$f":"IFERROR(INDEX(Base!$A$1:$CW$101,MATCH($A55,Base!$A$1:$A$101,0),MATCH($B55,Base!$A$1:$CW$1,0)),\"\")","v":""}]
[null,null,{"$f":"IFERROR(INDEX(Base!$A$1:$CW$101,MATCH($A56,Base!$A$1:$A$101,0),MATCH($B56,Base!$A$1:$CW$1,0)),\"\")","v":""}]
[null,null,{"$f":"IFERROR(INDEX(Base!$A$1:$CW$101,MATCH($A57,Base!$A$1:$A$101,0),MATCH($B57,Base!$A$1:$CW$1,0)),\"\")","v":""}]
[null,null,{"$f":"IFERROR(INDEX(Base!$A$1:$CW$101,MATCH($A58,Base!$A$1:$A$101,0),MATCH($B58,Base!$A$1:$CW$1,0)),\"\")","v":""}]
[null,null,{"$f":"IFERROR(INDEX(Base!$A$1:$CW$101,MATCH($A59,Base!$A$1:$A$101,0),MATCH($B59,Base!$A$1:$CW$1,0)),\"\")","v":""}]
[null,null,{"$f":"IFERROR(INDEX(Base!$A$1:$CW$101,MATCH($A60,Base!$A$1:$A$101,0),MATCH($B60,Base!$A$1:$CW$1,0)),\"\")","v":""}]
[null,null,{"$f":"IFERROR(INDEX(Base!$A$1:$CW$101,MATCH($A61,Base!$A$1:$A$101,0),MATCH($B61,Base!$A$1:$CW$1,0)),\"\")","v":""}]
[null,null,{"$f":"IFERROR(INDEX(Base!$A$1:$CW$101,MATCH($A62,Base!$A$1:$A$101,0),MATCH($B62,Base!$A$1:$CW$1,0)),\"\")","v":""}]
[null,null,{"$f":"IFERROR(INDEX(Base!$A$1:$CW$101,MATCH($A63,Base!$A$1:$A$101,0),MATCH($B63,Base!$A$1:$CW$1,0)),\"\")","v":""}]
[null,null,{"$f":"IFERROR(INDEX(Base!$A$1:$CW$101,MATCH($A64,Base!$A$1:$A$101,0),MATCH($B64,Base!$A$1:$CW$1,0)),\"\")","v":""}]
[null,null,{"$f":"IFERROR(INDEX(Base!$A$1:$CW$101,MATCH($A65,Base!$A$1:$A$101,0),MATCH($B65,Base!$A$1:$CW$1,0)),\"\")","v":""}]
[null,null,{"$f":"IFERROR(INDEX(Base!$A$1:$CW$101,MATCH($A66,Base!$A$1:$A$101,0),MATCH($B66,Base!$A$1:$CW$1,0)),\"\")","v":""}]
[null,null,{"$f":"IFERROR(INDEX(Base!$A$1:$CW$101,MATCH($A67,Base!$A$1:$A$101,0),MATCH($B67,Base!$A$1:$CW$1,0)),\"\")","v":""}]
[null,null,{"$f":"IFERROR(INDEX(Base!$A$1:$CW$101,MATCH($A68,Base!$A$1:$A$101,0),MATCH($B68,Base!$A$1:$CW$1,0)),\"\")","v":""}]
[null,null,{"$f":"IFERROR(INDEX(Base!$A$1:$CW$101,MATCH($A69,Base!$A$1:$A$101,0),MATCH($B69,Base!$A$1:$CW$1,0)),\"\")","v":""}]
[null,null,{"$f":"IFERROR(INDEX(Base!$A$1:$CW$101,MATCH($A70,Base!$A$1:$A$101,0),MATCH($B70,Base!$A$1:$CW$1,0)),\"\")","v":""}]
[null,null,{"$f":"IFERROR(INDEX(Base!$A$1:$CW$101,MATCH($A71,Base!$A$1:$A$101,0),MATCH($B71,Base!$A$1:$CW$1,0)),\"\")","v":""}]
[null,null,{"$f":"IFERROR(INDEX(Base!$A$1:$CW$101,MATCH($A72,Base!$A$1:$A$101,0),MATCH($B72,Base!$A$1:$CW$1,0)),\"\")","v":""}]
[null,null,{"$f":"IFERROR(INDEX(Base!$A$1:$CW$101,MATCH($A73,Base!$A$1:$A$101,0),MATCH($B73,Base!$A$1:$CW$1,0)),\"\")","v":""}]
[null,null,{"$f":"IFERROR(INDEX(Base!$A$1:$CW$101,MATCH($A74,Base!$A$1:$A$101,0),MATCH($B74,Base!$A$1:$CW$1,0)),\"\")","v":""}]
[null,null,{"$f":"IFERROR(INDEX(Base!$A$1:$CW$101,MATCH($A75,Base!$A$1:$A$101,0),MATCH($B75,Base!$A$1:$CW$1,0)),\"\")","v":""}]
[null,null,{"$f":"IFERROR(INDEX(Base!$A$1:$CW$101,MATCH($A76,Base!$A$1:$A$101,0),MATCH($B76,Base!$A$1:$CW$1,0)),\"\")","v":""}]
[null,null,{"$f":"IFERROR(INDEX(Base!$A$1:$CW$101,MATCH($A77,Base!$A$1:$A$101,0),MATCH($B77,Base!$A$1:$CW$1,0)),\"\")","v":""}]
[null,null,{"$f":"IFERROR(INDEX(Base!$A$1:$CW$101,MATCH($A78,Base!$A$1:$A$101,0),MATCH($B78,Base!$A$1:$CW$1,0)),\"\")","v":""}]
[null,null,{"$f":"IFERROR(INDEX(Base!$A$1:$CW$101,MATCH($A79,Base!$A$1:$A$101,0),MATCH($B79,Base!$A$1:$CW$1,0)),\"\")","v":""}]
[null,null,{"$f":"IFERROR(INDEX(Base!$A$1:$CW$101,MATCH($A80,Base!$A$1:$A$101,0),MATCH($B80,Base!$A$1:$CW$1,0)),\"\")","v":""}]
[null,null,{"$f":"IFERROR(INDEX(Base!$A$1:$CW$101,MATCH($A81,Base!$A$1:$A$101,0),MATCH($B81,Base!$A$1:$CW$1,0)),\"\")","v":""}]
[null,null,{"$f":"IFERROR(INDEX(Base!$A$1:$CW$101,MATCH($A82,Base!$A$1:$A$101,0),MATCH($B82,Base!$A$1:$CW$1,0)),\"\")","v":""}]
[null,null,{"$f":"IFERROR(INDEX(Base!$A$1:$CW$101,MATCH($A83,Base!$A$1:$A$101,0),MATCH($B83,Base!$A$1:$CW$1,0)),\"\")","v":""}]
[null,null,{"$f":"IFERROR(INDEX(Base!$A$1:$CW$101,MATCH($A84,Base!$A$1:$A$101,0),MATCH($B84,Base!$A$1:$CW$1,0)),\"\")","v":""}]
[null,null,{"$f":"IFERROR(INDEX(Base!$A$1:$CW$101,MATCH($A85,Base!$A$1:$A$101,0),MATCH($B85,Base!$A$1:$CW$1,0)),\"\")","v":""}]
[null,null,{"$f":"IFERROR(INDEX(Base!$A$1:$CW$101,MATCH($A86,Base!$A$1:$A$101,0),MATCH($B86,Base!$A$1:$CW$1,0)),\"\")","v":""}]
[null,null,{"$f":"IFERROR(INDEX(Base!$A$1:$CW$101,MATCH($A87,Base!$A$1:$A$101,0),MATCH($B87,Base!$A$1:$CW$1,0)),\"\")","v":""}]
[null,null,{"$f":"IFERROR(INDEX(Base!$A$1:$CW$101,MATCH($A88,Base!$A$1:$A$101,0),MATCH($B88,Base!$A$1:$CW$1,0)),\"\")","v":""}]
[null,null,{"$f":"IFERROR(INDEX(Base!$A$1:$CW$101,MATCH($A89,Base!$A$1:$A$101,0),MATCH($B89,Base!$A$1:$CW$1,0)),\"\")","v":""}]
[null,null,{"$f":"IFERROR(INDEX(Base!$A$1:$CW$101,MATCH($A90,Base!$A$1:$A$101,0),MATCH($B90,Base!$A$1:$CW$1,0)),\"\")","v":""}]
[null,null,{"$f":"IFERROR(INDEX(Base!$A$1:$CW$101,MATCH($A91,Base!$A$1:$A$101,0),MATCH($B91,Base!$A$1:$CW$1,0)),\"\")","v":""}]
[null,null,{"$f":"IFERROR(INDEX(Base!$A$1:$CW$101,MATCH($A92,Base!$A$1:$A$101,0),MATCH($B92,Base!$A$1:$CW$1,0)),\"\")","v":""}]
[null,null,{"$f":"IFERROR(INDEX(Base!$A$1:$CW$101,MATCH($A93,Base!$A$1:$A$101,0),MATCH($B93,Base!$A$1:$CW$1,0)),\"\")","v":""}]
[null,null,{"$f":"IFERROR(INDEX(Base!$A$1:$CW$101,MATCH($A94,Base!$A$1:$A$101,0),MATCH($B94,Base!$A$1:$CW$1,0)),\"\")","v":""}]
[null,null,{"$f":"IFERROR(INDEX(Base!$A$1:$CW$101,MATCH($A95,Base!$A$1:$A$101,0),MATCH($B95,Base!$A$1:$CW$1,0)),\"\")","v":""}]
[null,null,{"$f":"IFERROR(INDEX(Base!$A$1:$CW$101,MATCH($A96,Base!$A$1:$A$101,0),MATCH($B96,Base!$A$1:$CW$1,0)),\"\")","v":""}]
[null,null,{"$f":"IFERROR(INDEX(Base!$A$1:$CW$101,MATCH($A97,Base!$A$1:$A$101,0),MATCH($B97,Base!$A$1:$CW$1,0)),\"\")","v":""}]
[null,null,{"$f":"IFERROR(INDEX(Base!$A$1:$CW$101,MATCH($A98,Base!$A$1:$A$101,0),MATCH($B98,Base!$A$1:$CW$1,0)),\"\")","v":""}]
[null,null,{"$f":"IFERROR(INDEX(Base!$A$1:$CW$101,MATCH($A99,Base!$A$1:$A$101,0),MATCH($B99,Base!$A$1:$CW$1,0)),\"\")","v":""}]
[null,null,{"$f":"IFERROR(INDEX(Base!$A$1:$CW$101,MATCH($A100,Base!$A$1:$A$101,0),MATCH($B100,Base!$A$1:$CW$1,0)),\"\")","v":""}]
[null,null,{"$f":"IFERROR(INDEX(Base!$A$1:$CW$101,MATCH($A101,Base!$A$1:$A$101,0),MATCH($B101,Base!$A$1:$CW$1,0)),\"\")","v":""}]
[null,null,{"$f":"IFERROR(INDEX(Base!$A$1:$CW$101,MATCH($A102,Base!$A$1:$A$101,0),MATCH($B102,Base!$A$1:$CW$1,0)),\"\")","v":""}]
[null,null,{"$f":"IFERROR(INDEX(Base!$A$1:$CW$101,MATCH($A103,Base!$A$1:$A$101,0),MATCH($B103,Base!$A$1:$CW$1,0)),\"\")","v":""}]
[null,null,{"$f":"IFERROR(INDEX(Base!$A$1:$CW$101,MATCH($A104,Base!$A$1:$A$101,0),MATCH($B104,Base!$A$1:$CW$1,0)),\"\")","v":""}]
[null,null,{"$f":"IFERROR(INDEX(Base!$A$1:$CW$101,MATCH($A105,Base!$A$1:$A$101,0),MATCH($B105,Base!$A$1:$CW$1,0)),\"\")","v":""}]
[null,null,{"$f":"IFERROR(INDEX(Base!$A$1:$CW$101,MATCH($A106,Base!$A$1:$A$101,0),MATCH($B106,Base!$A$1:$CW$1,0)),\"\")","v":""}]
[null,null,{"$f":"IFERROR(INDEX(Base!$A$1:$CW$101,MATCH($A107,Base!$A$1:$A$101,0),MATCH($B107,Base!$A$1:$CW$1,0)),\"\")","v":""}]
[null,null,{"$f":"IFERROR(INDEX(Base!$A$1:$CW$101,MATCH($A108,Base!$A$1:$A$101,0),MATCH($B108,Base!$A$1:$CW$1,0)),\"\")","v":""}]
[null,null,{"$f":"IFERROR(INDEX(Base!$A$1:$CW$101,MATCH($A109,Base!$A$1:$A$101,0),MATCH($B109,Base!$A$1:$CW$1,0)),\"\")","v":""}]
[null,null,{"$f":"IFERROR(INDEX(Base!$A$1:$CW$101,MATCH($A110,Base!$A$1:$A$101,0),MATCH($B110,Base!$A$1:$CW$1,0)),\"\")","v":""}]
[null,null,{"$f":"IFERROR(INDEX(Base!$A$1:$CW$101,MATCH($A111,Base!$A$1:$A$101,0),MATCH($B111,Base!$A$1:$CW$1,0)),\"\")","v":""}]
[null,null,{"$f":"IFERROR(INDEX(Base!$A$1:$CW$101,MATCH($A112,Base!$A$1:$A$101,0),MATCH($B112,Base!$A$1:$CW$1,0)),\"\")","v":""}]
[null,null,{"$f":"IFERROR(INDEX(Base!$A$1:$CW$101,MATCH($A113,Base!$A$1:$A$101,0),MATCH($B113,Base!$A$1:$CW$1,0)),\"\")","v":""}]
[null,null,{"$f":"IFERROR(INDEX(Base!$A$1:$CW$101,MATCH($A114,Base!$A$1:$A$101,0),MATCH($B114,Base!$A$1:$CW$1,0)),\"\")","v":""}]
[null,null,{"$f":"IFERROR(INDEX(Base!$A$1:$CW$101,MATCH($A115,Base!$A$1:$A$101,0),MATCH($B115,Base!$A$1:$CW$1,0)),\"\")","v":""}]
[null,null,{"$f":"IFERROR(INDEX(Base!$A$1:$CW$101,MATCH($A116,Base!$A$1:$A$101,0),MATCH($B116,Base!$A$1:$CW$1,0)),\"\")","v":""}]
[null,null,{"$f":"IFERROR(INDEX(Base!$A$1:$CW$101,MATCH($A117,Base!$A$1:$A$101,0),MATCH($B117,Base!$A$1:$CW$1,0)),\"\")","v":""}]
[null,null,{"$f":"IFERROR(INDEX(Base!$A$1:$CW$101,MATCH($A118,Base!$A$1:$A$101,0),MATCH($B118,Base!$A$1:$CW$1,0)),\"\")","v":""}]
[null,null,{"$f":"IFERROR(INDEX(Base!$A$1:$CW$101,MATCH($A119,Base!$A$1:$A$101,0),MATCH($B119,Base!$A$1:$CW$1,0)),\"\")","v":""}]
[null,null,{"$f":"IFERROR(INDEX(Base!$A$1:$CW$101,MATCH($A120,Base!$A$1:$A$101,0),MATCH($B120,Base!$A$1:$CW$1,0)),\"\")","v":""}]
[null,null,{"$f":"IFERROR(INDEX(Base!$A$1:$CW$101,MATCH($A121,Base!$A$1:$A$101,0),MATCH($B121,Base!$A$1:$CW$1,0)),\"\")","v":""}]
[null,null,{"$f":"IFERROR(INDEX(Base!$A$1:$CW$101,MATCH($A122,Base!$A$1:$A$101,0),MATCH($B122,Base!$A$1:$CW$1,0)),\"\")","v":""}]
[null,null,{"$f":"IFERROR(INDEX(Base!$A$1:$CW$101,MATCH($A123,Base!$A$1:$A$101,0),MATCH($B123,Base!$A$1:$CW$1,0)),\"\")","v":""}]
[null,null,{"$f":"IFERROR(INDEX(Base!$A$1:$CW$101,MATCH($A124,Base!$A$1:$A$101,0),MATCH($B124,Base!$A$1:$CW$1,0)),\"\")","v":""}]
[null,null,{"$f":"IFERROR(INDEX(Base!$A$1:$CW$101,MATCH($A125,Base!$A$1:$A$101,0),MATCH($B125,Base!$A$1:$CW$1,0)),\"\")","v":""}]
[null,null,{"$f":"IFERROR(INDEX(Base!$A$1:$CW$101,MATCH($A126,Base!$A$1:$A$101,0),MATCH($B126,Base!$A$1:$CW$1,0)),\"\")","v":""}]
[null,null,{"$f":"IFERROR(INDEX(Base!$A$1:$CW$101,MATCH($A127,Base!$A$1:$A$101,0),MATCH($B127,Base!$A$1:$CW$1,0)),\"\")","v":""}]
[null,null,{"$f":"IFERROR(INDEX(Base!$A$1:$CW$101,MATCH($A128,Base!$A$1:$A$101,0),MATCH($B128,Base!$A$1:$CW$1,0)),\"\")","v":""}]
[null,null,{"$f":"IFERROR(INDEX(Base!$A$1:$CW$101,MATCH($A129,Base!$A$1:$A$101,0),MATCH($B129,Base!$A$1:$CW$1,0)),\"\")","v":""}]
[null,null,{"$f":"IFERROR(INDEX(Base!$A$1:$CW$101,MATCH($A130,Base!$A$1:$A$101,0),MATCH($B130,Base!$A$1:$CW$1,0)),\"\")","v":""}]
[null,null,{"$f":"IFERROR(INDEX(Base!$A$1:$CW$101,MATCH($A131,Base!$A$1:$A$101,0),MATCH($B131,Base!$A$1:$CW$1,0)),\"\")","v":""}]
[null,null,{"$f":"IFERROR(INDEX(Base!$A$1:$CW$101,MATCH($A132,Base!$A$1:$A$101,0),MATCH($B132,Base!$A$1:$CW$1,0)),\"\")","v":""}]
[null,null,{"$f":"IFERROR(INDEX(Base!$A$1:$CW$101,MATCH($A133,Base!$A$1:$A$101,0),MATCH($B133,Base!$A$1:$CW$1,0)),\"\")","v":""}]
[null,null,{"$f":"IFERROR(INDEX(Base!$A$1:$CW$101,MATCH($A134,Base!$A$1:$A$101,0),MATCH($B134,Base!$A$1:$CW$1,0)),\"\")","v":""}]
[null,null,{"$f":"IFERROR(INDEX(Base!$A$1:$CW$101,MATCH($A135,Base!$A$1:$A$101,0),MATCH($B135,Base!$A$1:$CW$1,0)),\"\")","v":""}]
[null,null,{"$f":"IFERROR(INDEX(Base!$A$1:$CW$101,MATCH($A136,Base!$A$1:$A$101,0),MATCH($B136,Base!$A$1:$CW$1,0)),\"\")","v":""}]
[null,null,{"$f":"IFERROR(INDEX(Base!$A$1:$CW$101,MATCH($A137,Base!$A$1:$A$101,0),MATCH($B137,Base!$A$1:$CW$1,0)),\"\")","v":""}]
[null,null,{"$f":"IFERROR(INDEX(Base!$A$1:$CW$101,MATCH($A138,Base!$A$1:$A$101,0),MATCH($B138,Base!$A$1:$CW$1,0)),\"\")","v":""}]
[null,null,{"$f":"IFERROR(INDEX(Base!$A$1:$CW$101,MATCH($A139,Base!$A$1:$A$101,0),MATCH($B139,Base!$A$1:$CW$1,0)),\"\")","v":""}]
[null,null,{"$f":"IFERROR(INDEX(Base!$A$1:$CW$101,MATCH($A140,Base!$A$1:$A$101,0),MATCH($B140,Base!$A$1:$CW$1,0)),\"\")","v":""}]

{"sheet":"Feuil3","index":2,"n_rows":0,"n_cols":0,"rows_kept":0,"cut":false,"hidden":false,"merged":[]}